Cogmind - Beta 17 @@@ ROGUE MODE // 2026.07.05 @ 12:07:54 Player: NeoBioHazard Result: Destroyed by S-10 Pest with Light Assault Rifle Performance ------------- Evolutions (0) 0 Regions Visited (2) 400 Robots Destroyed (24) 120 Value Destroyed (667) 667 Prototype IDs (1) 20 Alien Tech Used (0) 0 Bonus (5000) 5000 TOTAL SCORE: 6207 Bonus ------- Prayed to X0-1V1 5000 Cogmind --------- Core Integrity 0/325 Matter 300/300 Energy 350/350 System Corruption 0% Temperature Cool (0) Movement Core (550) Ox10 Location -10/Subcaves Parts ------- > --- POWER (1) -------- Subdweller Power Source > --- PROPULSION (2) --- (None) > --- UTILITY (2) ------ Large Storage Unit Medium Battery > --- WEAPON (2) ------- Mace Makeshift Sword > --- INVENTORY (15) --- SUBCON Basin (Full) Peak State ------------ > --- POWER ------------ (None) > --- PROPULSION ------- Spiked Treads Subdweller Monowheel > --- UTILITY ---------- Large Storage Unit Medium Battery > --- WEAPON ----------- Mace Makeshift Sword > --- INVENTORY -------- SUBCON Basin [Rating: 30] Favorites ----------- Power Ion Engine Engine Ion Engine Propulsion Light Treads Treads Light Treads Wheel Subdweller Monowheel Utility Large Storage Unit Device Heat Sink Storage Large Storage Unit Weapon EM Pulse Gun Energy Gun EM Pulse Gun Impact Weapon Mace Slashing Weapon Makeshift Sword Build | -11 -10 -10 ------- Run | Yrd Mat Sub Slots Evolved . | . . . Power . | . . . Propulsion . | . . . Utility . | . . . Weapon . | . . . Parts Attached 18 | 6 4 8 Power 4 | 1 1 2 Engine 4 | 1 1 2 Core . | . . . Reactor . | . . . Propulsion 4 | 2 . 2 Treads 3 | 2 . 1 Leg . | . . . Wheel 1 | . . 1 Hover . | . . . Flight . | . . . Utility 5 | 1 2 2 Device 2 | . 1 1 Storage 3 | 1 1 1 Processor . | . . . Hackware . | . . . Protection . | . . . Artifact . | . . . Weapon 5 | 2 1 2 Energy Gun 4 | 2 1 1 Energy Cannon . | . . . Ballistic Gun . | . . . Ballistic Cannon . | . . . Launcher . | . . . Special Weapon . | . . . Impact Weapon . | . . . Slashing Weapon 1 | . . 1 Piercing Weapon . | . . . Special Melee Weapon . | . . . Unidentified Prototypes 1 | . . 1 Parts Lost 10 | . 1 9 Power 2 | . . 2 Propulsion 3 | . . 3 Utility 1 | . . 1 Weapon 4 | . 1 3 Highest Loss Streak 4 | . 1 4 To Critical Strikes . | . . . Average Backups 4 | 1 5 3 Power 1 | . 1 . Propulsion . | . . . Utility 1 | . . 1 Weapon 2 | . 3 1 Tool/Special . | . . . Unused Backups 4 | . . 4 Power . | . . . Propulsion . | . . . Utility 1 | . . 1 Weapon 3 | . . 3 Tool/Special . | . . . Average Slot Usage (%) 88 | . 97 82 Engine 11 | . 14 10 Treads 21 | . 28 17 Wheel 1 | . . 2 Device 7 | . 11 4 Storage 18 | . 14 21 Energy Gun 19 | . 27 14 Impact Weapon 2 | . . 3 Slashing Weapon 3 | . . 6 Peak Build Rating 30 | 6 9 30 Average Rating 14 | 4 6 19 On Entrance 5 | . 6 9 Avg Prop Armor Cover (%) 24 | . . 24 Naked Turns . | . . . Heaviest Build 31 | 12 30 31 Greatest Support 40 | 40 40 40 Greatest Overweight (x) 10 | . . 10 Average Overweight (x) . | . . . Largest Inventory Capacity 15 | 8 15 15 Average Capacity 12 | 6 9 15 Most Carried 15 | 3 9 15 Average Carried 9 | 1 5 12 Final Capacity 15 | 8 15 15 Final Carried 15 | 2 9 15 Class Distribution -------------------- 100% | Mutant Dominant Class ---------------- Mutant | -10/Materials Mutant | -10/Subcaves Resources | -11 -10 -10 ----------- Run | Yrd Mat Sub Matter Collected 360 | 217 83 60 Remotely . | . . . Salvage Created 893 | . 435 458 Parts 57 | . 30 27 Haulers Intercepted 1 | . 1 . Recyclers Shooed . | . . . Parts Field Recycled . | . . . Retrieved Matter . | . . . Parts Self-Destructed 1 | . . 1 Prevented . | . . . Parts Restored . | . . . Kills | -11 -10 -10 ------- Run | Yrd Mat Sub Combat Hostiles Destroyed 21 | . 11 10 Melee 6 | . . 6 Guns 10 | . 9 1 AOE 3 | . 2 1 Classes Destroyed 5 | . 4 1 Hauler 1 | . 1 . Watcher 2 | . 2 . Swarmer 7 | . 6 1 Grunt 5 | . 5 . Subdweller 9 | . . 9 Best Kill Streak 6 | . 6 2 Combat Bots Only 5 | . 5 2 Max Kills in Single Turn 2 | . 2 1 Gunslinging 1 | . 1 . Exploded 2 | . 2 1 Melee 1 | . . 1 Uniques/NPCs Destroyed . | . . . Combat | -11 -10 -10 -------- Run | Yrd Mat Sub Hostile Shots Fired 136 | . 42 94 Missed 37 | . 10 27 Hits 99 | . 32 67 Projectile 99 | . 32 67 Critical Strikes 4 | . 1 3 Damage Taken 1401 | . 344 1057 Core 479 | . 56 423 Absorbed by Shields . | . . . Ignored by Resistances 77 | . . 77 Core Remaining (%) 100 | 100 . . Volleys Fired 60 | . 36 24 Largest 2 | . 2 2 Hottest 80 | . 80 80 Shots Fired 116 | . 72 44 Gun 116 | . 72 44 Cannon . | . . . Launcher . | . . . Special . | . . . Kinetic . | . . . Thermal . | . . . Explosive . | . . . Electromagnetic 116 | . 72 44 Robot Hit Streak 13 | . 11 13 Robot Miss Streak 7 | . 7 2 Penetration Max . | . . . Secondary Targets 1 | . 1 . Max Gunslinging Chain 1 | . 1 . Shots Hit Robots 87 | . 36 51 Core Hits 34 | . 20 14 Critical Kills . | . . . Critical Parts Destroyed . | . . . Critical Strikes 4 | . 3 1 Corrupt 4 | . 3 1 Melee Attacks 32 | . . 32 Impact 3 | . . 3 Slashing 29 | . . 29 Piercing . | . . . Sneak Attacks . | . . . Combat Hostiles . | . . . Follow-up Attacks 2 | . . 2 Damage Inflicted 1686 | . 558 1128 Guns 823 | . 491 332 Cannons . | . . . Explosions 131 | . 67 64 Melee 730 | . . 730 Ramming 2 | . . 2 Kinetic . | . . . Thermal 131 | . 67 64 Explosive . | . . . Electromagnetic 823 | . 491 332 Impact 57 | . . 57 Slashing 673 | . . 673 Piercing . | . . . Highest Corruption . | . . . Average Corruption . | . . . Corruption Purged . | . . . Corruption Blocked . | . . . Overload Shots . | . . . Overflow Damage 15 | . . 15 Projectiles . | . . . Explosions . | . . . Melee 15 | . . 15 Knockbacks 1 | . . 1 Impact 1 | . . 1 Kinetic . | . . . Secondary . | . . . Self-Inflicted Damage . | . . . Shots . | . . . Rammed 2 | . . 2 Targets Rammed 2 | . . 2 Kicked . | . . . Crushed . | . . . Highest Temperature 221 | . 72 221 Average Temperature 35 | . 28 138 Received Heat Transfer 603 | . 141 462 Siege Activations . | . . . Martial Activations . | . . . Shielding Activations . | . . . Robots Disrupted . | . . . Combat Hostiles . | . . . Robots Corrupted 1 | . . 1 Combat Hostiles 1 | . . 1 Parts Fried 3 | . 1 2 Impact Corruptions . | . . . Robots Melted . | . . . Combat Hostiles . | . . . Parts Melted . | . . . Heat Transferred 100 | . 50 50 Parts Sabotaged . | . . . Parts Stolen . | . . . Parts Stripped . | . . . Power Chain Reactions 2 | . 1 1 Alert | -11 -10 -10 ------- Run | Yrd Mat Sub Maximum Alert Level . | . . . Low Security (%) 100 | 100 100 . Level 1 . | . . . Level 2 . | . . . Level 3 . | . . . Level 4 . | . . . Level 5 . | . . . High Security . | . . . Max Security . | . . . Peak Influence 120 | . 120 . Initial . | . . . Average 33 | . 36 . Influence Increases 360 | . 330 30 Destroy 0b10 Robot/C 240 | . 220 20 Destroy 0b10 Robot/NC 15 | . 15 . Destroy Leader 66 | . 56 10 Successful Hack 6 | . 6 . Disable Machine 30 | . 30 . Destroy Structure 3 | . 3 . Influence Decreases 330 | . 296 34 Entered New Map 17 | . . 17 Time Decay 303 | . 286 17 Lost Part 10 | . 10 . Squads Dispatched 2 | . 2 . Investigation . | . . . Extermination . | . . . Reinforcement 2 | . 2 . Assault . | . . . Garrison . | . . . Intercept . | . . . Searches Triggered . | . . . Construction Impeded . | . . . Haulers Reinforced . | . . . Active Scanning Responses . | . . . Cargo Convoy Interrupts . | . . . Stealth | -11 -10 -10 --------- Run | Yrd Mat Sub Distress Signals . | . . . Communications Jammed . | . . . Distress Signals . | . . . Times Spotted 28 | . 16 12 Peak Tracking Total 4 | . 4 3 Tactical Retreats . | . . . Traps | -11 -10 -10 ------- Run | Yrd Mat Sub Traps Triggered . | . . . Indirectly . | . . . Trap Hack Attempts . | . . . Triggered . | . . . Disarmed . | . . . Reprogrammed . | . . . Reused . | . . . Traps Extracted . | . . . Installed . | . . . Triggered . | . . . Machines | -11 -10 -10 ---------- Run | Yrd Mat Sub Machines Disabled 3 | . 3 . Max in Single Turn 1 | . 1 . Machines Repaired . | . . . Machines Dismantled . | . . . Machines Sabotaged . | . . . Overloaded Fab Kills . | . . . Hacking | -11 -10 -10 --------- Run | Yrd Mat Sub Machines Accessed 4 | . 2 2 Terminals 2 | . 2 . Fabricators . | . . . Repair Stations . | . . . Recycling Units . | . . . Scanalyzers . | . . . Garrison Access . | . . . Total Hacks 8 | . 5 3 Successful 6 | . 3 3 Failed 2 | . 2 . Catastrophic . | . . . Database Lockouts . | . . . Manual 6 | . 6 . Terminals 5 | . 5 . Fabricators . | . . . Repair Stations . | . . . Recycling Units . | . . . Scanalyzers . | . . . Garrison Access . | . . . Terminal Hacks 5 | . 2 3 Record 1 | . . 1 Robot Analysis 1 | . 1 . Open Door 1 | . . 1 Locate Traps 1 | . 1 . Release Object 1 | . . 1 Fabricator Hacks . | . . . Repair Station Hacks . | . . . Recycling Unit Hacks . | . . . Scanalyzer . | . . . Garrison Access Hacks . | . . . Unauthorized Hacks 1 | . 1 . Terminals 1 | . 1 . Botnet 1 | . 1 . Fabricators . | . . . Repair Stations . | . . . Recycling Units . | . . . Scanalyzers . | . . . Garrison Access . | . . . Data Cores Recovered . | . . . Used . | . . . Hacking Detections 2 | . 2 . Full Trace Events . | . . . Feedback Events . | . . . Feedback Blocked . | . . . Robot Schematics Acquired . | . . . Robots Built . | . . . Authchips . | . . . Time . | . . . Total Robot Build Rating . | . . . Part Schematics Acquired . | . . . Parts Built . | . . . Authchips . | . . . Time . | . . . Total Part Build Rating . | . . . Part Studies Acquired . | . . . Parts Repaired . | . . . Time . | . . . Parts Recycled . | . . . Recycled Matter . | . . . Retrieved Matter . | . . . Retrieved Components . | . . . Parts Scanalyzed . | . . . Part Schematics Acquired . | . . . Parts Damaged . | . . . Bothacking | -11 -10 -10 ------------ Run | Yrd Mat Sub Used RIF Installer . | . . . Robots Hacked . | . . . Non-combat . | . . . Combat . | . . . Robot Hacks Applied . | . . . Relay Couplers Released . | . . . Fabnet Peak Effective % . | . . . Robots Rewired . | . . . Allies Hacked . | . . . Hacks Repelled . | . . . Allies | -11 -10 -10 -------- Run | Yrd Mat Sub Total Allies . | . . . Largest Group . | . . . Highest-Rated Group . | . . . Highest-Rated Ally . | . . . Total Orders . | . . . Ally Attacks . | . . . Total Damage . | . . . Kills . | . . . Allies Corrupted . | . . . Allies Melted . | . . . X0-1V1 Amusement Gains 31 | . 11 20 Good Acts 8 | . . 8 Bad Acts 2 | . . 2 Intel | -11 -10 -10 ------- Run | Yrd Mat Sub Active Infowar (turns) . | . . . Robot Analysis Total 1 | . 1 . Derelict Logs Recovered . | . . . Drone Launches . | . . . Drone Recoveries . | . . . Exploration | -11 -10 -10 ------------- Run | Yrd Mat Sub Turns Passed 2245 | 68 844 1333 Spaces Moved 1100 | 39 426 635 Core 13 | 4 . 9 Treads 895 | 35 426 434 Legs . | . . . Wheels 192 | . . 192 Hover . | . . . Flight . | . . . Fastest Speed 50 | 50 160 120 Average Speed 173 | 148 160 183 Slowest Speed 550 | 160 160 550 Overloaded Moves . | . . . Propulsion Burnouts . | . . . Robots Hopped . | . . . Potential Cave-ins . | . . . Cave-ins Triggered . | . . . Exploration Rate (%) 45 | 4 91 40 Regions Visited 2 Branch Regions 1 Pre-discovered Areas . | . . . Known Exits Taken . | . . . Unknown Exits Taken 2 | 1 1 . Scrap Searched 11 | . . 11 Spaces Dug . | . . . Terrain Destroyed 3 | . 2 1 Melee . | . . . Projectile . | . . . AOE 3 | . 2 1 Terrain Rammed . | . . . Walls Destroyed . | . . . Machines Disabled . | . . . Actions | -11 -10 -10 --------- Run | Yrd Mat Sub Total 1288 | 47 515 726 Wait 61 | . 44 17 Move 1098 | 38 425 635 Hop . | . . . Pick Up 11 | 3 6 2 Fast Attach 11 | 5 1 5 Attach 5 | 1 1 3 Detach 1 | . . 1 Swap 2 | . 2 . Drop 8 | . . 8 Fire 60 | . 36 24 Melee 29 | . . 29 Ram . | . . . Kick . | . . . Crush 2 | . . 2 Escape Stasis . | . . . Rewire . | . . . Trap . | . . . Miscellaneous . | . . . Route ------- -11/Scrapyard -10/Materials (discovered 6 exits: [*Mat x3] / [*Min x2] / *Sub) -10/Subcaves History --------- Turn | Location | Event 5 | -11/Scrapyard | Discovered new exit (range 15) 69 | -11/Scrapyard | Entered Materials 195 | -10/Materials | Discovered new exit (range 16) 240 | -10/Materials | Discovered new exit (range 6) 318 | -10/Materials | Build established: Mutant 555 | -10/Materials | Discovered new exit (range 16) 657 | -10/Materials | Discovered new exit (range 15) 783 | -10/Materials | Discovered new exit (range 14) 876 | -10/Materials | Discovered new exit (range 7) 907 | -10/Materials | Prayed at D.C.S.S. Altar Unit 913 | -10/Materials | Entered Subcaves 1446 | -10/Subcaves | EX resistance permanently improved by X0-1V1 (+10%; -100 max core) 1506 | -10/Subcaves | Found SUBCON Basin 1587 | -10/Subcaves | Disturbed a concealed Subdweller 1638 | -10/Subcaves | Core integrity fell below 50% 1652 | -10/Subcaves | Core integrity fell below 20% 1670 | -10/Subcaves | Core integrity permanently improved by X0-1V1 (+250) 1674 | -10/Subcaves | Lost 4 parts (1p1n2w) 1746 | -10/Subcaves | Heat dissipation permanently improved by X0-1V1 (+15; -75 max core) 2050 | -10/Subcaves | A swath of the cavern ceiling suddenly collapsed 2150 | -10/Subcaves | Shifting Twisted Machinery released Battle Cannon 2174 | -10/Subcaves | Shifting Twisted Machinery released Sub. Monowheel 2246 | -10/Subcaves | Destroyed by S-10 Pest with Light Assault Rifle Last Messages --------------- 01954_ Destroyed Scrap Shield. 01956_ 8L-UTN(R) destroyed. 01956_ Mace follow-up attack on JF-0SI(R). 01956_ JF-0SI(R) knocked back. 01965_ JF-0SI(R) destroyed. 01968_ Sub. Monowheel shoots sparks and powers down. 01969_ Dropped Broken Sub. Monowheel. 01977_ Acquired Sub. Power Source. 01989_ Acquired 10 matter. X0-1V1's Piety Tracker suddenly appears amidst shimmering waves of color. A swath of the cavern ceiling suddenly collapses. Battle Cannon falls loose from the Twisted Machinery. Sub. Monowheel falls loose from the Twisted Machinery. X0-1V1's Piety Tracker suddenly appears amidst shimmering waves of color. 02227_ Spk. Treads destroyed. 02229_ X0-1V1 makes it rain matter. 02233_ Destroyed Flight Unit. 02233_ S-10 Pest destroyed. 02242_ Lgt. Assault Rifle fries itself beyond repair. 02246_ X0-1V1 chuckles heartily! Map ----- +----------------------------------------------------+ | ????????????????????????????????????## #?? | | ?????????????????????????????????????# #?? | | ????????????????????????????????????## #?? | | ????????????????????????????????????# #?? | | ????????????????????????????????????## #?? | | ?????????????????????????????????????### #?? | | ???????????????????????????????????????# ##?? | | ?????????????????????????????????# #### ###??? | | ??????????????????????????????????# #????? | | ?????????????????????????????? ???# ### #????? | | ????????????????????????????? #?#????# ##???? | | ????????????????????????????# #"#?###### #???? | | ???????????????????????????## "## ## ##???? | | ?????????????????????????### "" " ##???? | | ?????????????????????????# " "" " #???? | | ?????????????????????????# """"" #]#"###???? | | ?????????????????????????# """""" "#####?????? | | ????????????????????????## ## """ ""#?????????? | | ???????????????????????## % ### "" " "##????????? | | ???????????????????????# ### "" ""##???????? | | ????????????????????????# "" ""##"?????? | | ?????????????????????????# !"= """"" ????? | | ?????????????????????????# s% " " """ #????? | | ???????????????????????### % % """"" #????? | | ???????????????????????# % % % ""##""" #???? | | ???????????????????????# @# ##?# ?#???? | | ???????????????????? %#####???# #????? | | ???????????????? s% % ##????????###????? | | ???????????? #### ## # %##????????????????? | | ??????????? ?????##?### ####?????????????????? | | ??????????????????????????###????????????????????? | | ?????????????????????????????????????????????????? | | ?????????????????????????????????????????????????? | | ?????????????????????????????????????????????????? | | ?????????????????????????????????????????????????? | | ?????????????????????????????????????????????????? | | ?????????????????????????????????????????????????? | | ?????????????????????????????????????????????????? | | ?????????????????????????????????????????????????? | | ?????????????????????????????????????????????????? | | ?????????????????????????????????????????????????? | | ?????????????????????????????????????????????????? | | ?????????????????????????????????????????????????? | | ?????????????????????????????????????????????????? | | ?????????????????????????????????????????????????? | | ?????????????????????????????????????????????????? | | ?????????????????????????????????????????????????? | | | | | | | +----------------------------------------------------+ Best States ------------- Heat Dissipation 75 Energy Generation 15 Energy Capacity 350 Matter Stores 300 Matter Capacity 300 Sight Range 16 Terrain Scan Density 10 Resistance: TH 24 Resistance: EX 10 Evasion (%) 40 Recoil Reduction 2 Item Schematics ----------------- None Robot Schematics ------------------ None Fabricated ------------ Nothing Repaired ---------- Nothing Studied --------- None Alien Tech Used ----------------- None Achievements -------------- None Challenges ------------ None Game ------ Seed DamperXenonMonowheel Manual? 0 Play Time 00:18:17 Cumulative 245.9 hours Start 2026.07.05 @ 11:44:56 End 2026.07.05 @ 12:07:54 Sessions 1 Manual Loads 0 Difficulty Rogue Special Mode None Game No. 402 Rogue 239 Adventurer 15 Explorer 148 Win Type - Total 27 Types 26/0/0/1/0/0/0/0/0/0 Lore% 65 Gallery% 64 Achievement% 57 Wizard Run 0 Options --------- Layout 0 ASCII 0 Keyboard 1 Movement Numpad Keybinds 0 Fullscreen 2 Font 18/SmallcapsGlow Map View 76x50 Zoom Use 0% Tactical HUD 1 Map Filters NONE Filters NONE Steam 1 RUN: f73b1a38-41c2-419c-aa47-5d4aaf79a09e